[Event "EWIBCC 2019"]
[Site "Monte-Carlo"]
[Date "2019.11.29"]
[Round "12.11"]
[White "Buksa, Nataliya"]
[Black "Osmak, Iulija"]
[Result "0-1"]
[ECO "B00"]
[WhiteElo "2410"]
[BlackElo "2401"]
[Annotator "NA"]
[PlyCount "96"]
[EventDate "2019.11.29"]
[EventType "swiss"]
[EventCountry "MNC"]
[SourceTitle "playchess.com"]
[Source "ChessBase"]
[SourceQuality "1"]
[TimeControl "180+2"]

1. e4 {[%emt 0:00:00]} Nc6 {[%emt 0:00:00]} 2. d4 {[%emt 0:00:03]} d6 {[%emt 0:00:00]} 3. Bb5 {[%emt 0:00:04]} a6 {[%emt 0:00:01]} 4. Ba4 {[%emt 0:00:01]} b5 {[%emt 0:00:05]} 5. Bb3 {[%emt 0:00:00]} Nf6 {[%emt 0:00:05]} 6. Nc3 {[%emt 0:00:09]} e6 {[%emt 0:00:07]} 7. d5 {[%emt 0:00:09]} Na5 {[%emt 0:00:19]} 8. dxe6 {[%emt 0:00:01]} fxe6 {[%emt 0:00:01]} 9. Bg5 {[%emt 0:00:07]} Be7 {[%emt 0:00:15]} 10. Nf3 {[%emt 0:00:26]} e5 {[%emt 0:00:10]} 11. Qe2 {[%emt 0:00:23]} Nxb3 {[%emt 0:00:10]} 12. axb3 {[%emt 0:00:01]} Be6 {[%emt 0:00:19]} 13. O-O-O {[%emt 0:00:07]} Qc8 {[%emt 0:00:08]} 14. Nd5 {[%emt 0:00:10]} Bxd5 {[%emt 0:00:11]} 15. exd5 {[%emt 0:00:00]} O-O {[%emt 0:00:03]} 16. h3 {[%emt 0:00:01]} Qb7 {[%emt 0:00:04]} 17. h4 {[%emt 0:01:12]} Nxd5 {[%emt 0:00:39]} 18. Nxe5 {[%emt 0:00:00]} dxe5 {[%emt 0:00:09]} 19. Qxe5 {[%emt 0:00:01]} Bxg5+ {[%emt 0:00:21]} 20. hxg5 {[%emt 0:00:02]} c6 {[%emt 0:00:02]} 21. Rxh7 {[%emt 0:00:12]} Qe7 {[%emt 0:00:22]} 22. Qh2 {[%emt 0:00:07]} Qxg5+ {[%emt 0:00:02]} 23. Kb1 {[%emt 0:00:01]} Rae8 {[%emt 0:00:07]} 24. Rh8+ {[%emt 0:00:06]} Kf7 {[%emt 0:00:01]} 25. Rh3 {[%emt 0:00:01]} Re6 {[%emt 0:00:02]} 26. Rg3 {[%emt 0:00:05]} Qh6 {[%emt 0:00:02]} 27. Rf3+ {[%emt 0:00:01]} Rf6 {[%emt 0:00:02]} 28. Qd6 {[%emt 0:00:02]} Rxf3 {[%emt 0:00:02]} 29. Qd7+ {[%emt 0:00:01]} Kg8 {[%emt 0:00:03]} 30. gxf3 {[%emt 0:00:01]} Rxf3 {[%emt 0:00:03]} 31. Re1 {[%emt 0:00:00]} Rf8 {[%emt 0:00:03]} 32. c4 {[%emt 0:00:04]} Qg6+ {[%emt 0:00:01]} 33. Ka1 {[%emt 0:00:02]} Nb4 {[%emt 0:00:02]} 34. Rd1 {[%emt 0:00:06]} Nc2+ {[%emt 0:00:02]} 35. Ka2 {[%emt 0:00:00]} Nb4+ {[%emt 0:00:02]} 36. Ka1 {[%emt 0:00:01]} a5 {[%emt 0:00:03]} 37. cxb5 {[%emt 0:00:04]} cxb5 {[%emt 0:00:06]} 38. f4 {[%emt 0:00:02]} Nc2+ {[%emt 0:00:00]} 39. Ka2 {[%emt 0:00:00]} Nb4+ {[%emt 0:00:00]} 40. Ka1 {[%emt 0:00:01]} Rxf4 {[%emt 0:00:02]} 41. Qxb5 {[%emt 0:00:04]} Nc2+ {[%emt 0:00:02]} 42. Ka2 {[%emt 0:00:01]} Nb4+ {[%emt 0:00:01]} 43. Ka1 {[%emt 0:00:00]} Rf8 {[%emt 0:00:03]} 44. Qc4+ {[%emt 0:00:02]} Qf7 {[%emt 0:00:02]} 45. Qc5 {[%emt 0:00:02]} Qxb3 {[%emt 0:00:02]} 46. Qxf8+ {[%emt 0:00:19]} Kxf8 {[%emt 0:00:01]} 47. Rf1+ {[%emt 0:00:01]} Kg8 {[%emt 0:00:03]} 48. Kb1 {[%emt 0:00:01]} Qd3+ {[%emt 0:00:02]} 0-1

[Event "EWIBCC 2019"]
[Site "Monte-Carlo"]
[Date "2019.11.29"]
[Round "12.14"]
[White "Reizniece-Ozola, Dana"]
[Black "Babiy, Olga"]
[Result "1/2-1/2"]
[ECO "A21"]
[WhiteElo "2305"]
[BlackElo "2249"]
[Annotator "ChessBase"]
[PlyCount "190"]
[EventDate "2019.11.29"]
[EventType "swiss"]
[EventCountry "MNC"]
[SourceTitle "playchess.com"]
[Source "ChessBase"]
[SourceQuality "1"]
[TimeControl "180+2"]

1. c4 {[%emt 0:00:00]} e5 {[%emt 0:00:00]} 2. Nc3 {[%emt 0:00:00]} Bb4 {[%emt 0:00:06]} 3. Qc2 {[%emt 0:00:03]} Nc6 {[%emt 0:00:05]} 4. Nf3 {[%emt 0:00:01]} Nge7 {[%emt 0:00:12]} 5. e3 {[%emt 0:00:06]} d6 {[%emt 0:00:06]} 6. Nd5 {[%emt 0:00:03]} Bc5 {[%emt 0:00:09]} 7. a3 {[%emt 0:00:11]} a5 {[%emt 0:00:09]} 8. b3 {[%emt 0:00:02]} Nxd5 {[%emt 0:00:08]} 9. cxd5 {[%emt 0:00:02]} Ne7 {[%emt 0:00:01]} 10. Bc4 {[%emt 0:00:31]} Bd7 {[%emt 0:00:16]} 11. a4 {[%emt 0:00:24]} O-O {[%emt 0:00:04]} 12. Bb2 {[%emt 0:00:03]} Bf5 {[%emt 0:00:25]} 13. e4 {[%emt 0:00:13]} Bg4 {[%emt 0:00:07]} 14. d4 {[%emt 0:00:01]} Bb4+ {[%emt 0:00:08]} 15. Nd2 {[%emt 0:00:01]} Ng6 {[%emt 0:00:23]} 16. h3 {[%emt 0:00:24]} Bd7 {[%emt 0:00:09]} 17. dxe5 {[%emt 0:00:14]} dxe5 {[%emt 0:00:05]} 18. g3 {[%emt 0:00:24]} Qg5 {[%emt 0:00:08]} 19. Be2 {[%emt 0:00:22]} f5 {[%emt 0:00:19]} 20. h4 {[%emt 0:00:02]} Qf6 {[%emt 0:00:01]} 21. h5 {[%emt 0:00:10]} Ne7 {[%emt 0:00:01]} 22. O-O-O {[%emt 0:00:05]} Bxd2+ {[%emt 0:00:03]} 23. Rxd2 {[%emt 0:00:04]} fxe4 {[%emt 0:00:01]} 24. Qxe4 {[%emt 0:00:05]} Bf5 {[%emt 0:00:03]} 25. Qc4 {[%emt 0:00:01]} Kh8 {[%emt 0:00:06]} 26. f4 {[%emt 0:00:01]} Rad8 {[%emt 0:00:20]} 27. fxe5 {[%emt 0:00:02]} Qg5 {[%emt 0:00:03]} 28. h6 {[%emt 0:00:02]} Rxd5 {[%emt 0:00:06]} 29. hxg7+ {[%emt 0:00:02]} Kxg7 {[%emt 0:00:01]} 30. Rhd1 {[%emt 0:00:04]} Rfd8 {[%emt 0:00:04]} 31. Bc3 {[%emt 0:00:01]} Rxd2 {[%emt 0:00:05]} 32. Bxd2 {[%emt 0:00:03]} Qxg3 {[%emt 0:00:01]} 33. Kb2 {[%emt 0:00:04]} Kh8 {[%emt 0:00:03]} 34. Bc3 {[%emt 0:00:02]} Rxd1 {[%emt 0:00:04]} 35. Bxd1 {[%emt 0:00:01]} Qf2+ {[%emt 0:00:02]} 36. Be2 {[%emt 0:00:01]} c6 {[%emt 0:00:03]} 37. Bd4 {[%emt 0:00:03]} Qg2 {[%emt 0:00:01]} 38. Kc3 {[%emt 0:00:01]} Kg7 {[%emt 0:00:02]} 39. e6+ {[%emt 0:00:01]} Kg6 {[%emt 0:00:02]} 40. Kd2 {[%emt 0:00:04]} Qg5+ {[%emt 0:00:01]} 41. Be3 {[%emt 0:00:01]} Qg2 {[%emt 0:00:02]} 42. Qf4 {[%emt 0:00:01]} Bxe6 {[%emt 0:00:09]} 43. Qh6+ {[%emt 0:00:04]} Kf7 {[%emt 0:00:00]} 44. Qxh7+ {[%emt 0:00:01]} Ke8 {[%emt 0:00:04]} 45. Qh8+ {[%emt 0:00:03]} Kd7 {[%emt 0:00:00]} 46. Qd4+ {[%emt 0:00:01]} Nd5 {[%emt 0:00:00]} 47. Bf2 {[%emt 0:00:03]} Qg5+ {[%emt 0:00:00]} 48. Kd1 {[%emt 0:00:01]} Qg6 {[%emt 0:00:00]} 49. Bd3 {[%emt 0:00:02]} Qg4+ {[%emt 0:00:00]} 50. Qxg4 {[%emt 0:00:02]} Bxg4+ {[%emt 0:00:01]} 51. Kd2 {[%emt 0:00:00]} Be6 {[%emt 0:00:02]} 52. Bc2 {[%emt 0:00:02]} Nb4 {[%emt 0:00:01]} 53. Bd1 {[%emt 0:00:01]} Kc7 {[%emt 0:00:07]} 54. Bg3+ {[%emt 0:00:01]} Kb6 {[%emt 0:00:01]} 55. Bf2+ {[%emt 0:00:01]} c5 {[%emt 0:00:01]} 56. Kc3 {[%emt 0:00:02]} Nd5+ {[%emt 0:00:02]} 57. Kb2 {[%emt 0:00:01]} Bf7 {[%emt 0:00:05]} 58. Bf3 {[%emt 0:00:01]} Nb4 {[%emt 0:00:01]} 59. Be2 {[%emt 0:00:04]} Kc6 {[%emt 0:00:02]} 60. Bf1 {[%emt 0:00:03]} b6 {[%emt 0:00:01]} 61. Bg2+ {[%emt 0:00:03]} Bd5 {[%emt 0:00:00]} 62. Bf1 {[%emt 0:00:00]} Kd6 {[%emt 0:00:01]} 63. Be2 {[%emt 0:00:01]} Ke5 {[%emt 0:00:02]} 64. Bg3+ {[%emt 0:00:01]} Ke4 {[%emt 0:00:02]} 65. Bc7 {[%emt 0:00:01]} Ke3 {[%emt 0:00:05]} 66. Bb5 {[%emt 0:00:01]} Nd3+ {[%emt 0:00:06]} 67. Kc3 {[%emt 0:00:02]} Nf4 {[%emt 0:00:02]} 68. Bxb6 {[%emt 0:00:01]} Ne2+ {[%emt 0:00:01]} 69. Kb2 {[%emt 0:00:01]} Ke4 {[%emt 0:00:03]} 70. Bxc5 {[%emt 0:00:01]} Nd4 {[%emt 0:00:02]} 71. Ba6 {[%emt 0:00:03]} Nxb3 {[%emt 0:00:01]} 72. Bb6 {[%emt 0:00:02]} Ke5 {[%emt 0:00:03]} 73. Be2 {[%emt 0:00:02]} Kd6 {[%emt 0:00:00]} 74. Bd1 {[%emt 0:00:01]} Nc5 {[%emt 0:00:02]} 75. Bxa5 {[%emt 0:00:02]} Kc6 {[%emt 0:00:00]} 76. Bc3 {[%emt 0:00:01]} Kb6 {[%emt 0:00:03]} 77. Ka3 {[%emt 0:00:01]} Kc6 {[%emt 0:00:01]} 78. Be2 {[%emt 0:00:01]} Ne4 {[%emt 0:00:02]} 79. Bb5+ {[%emt 0:00:02]} Kb7 {[%emt 0:00:02]} 80. Bd4 {[%emt 0:00:01]} Nd6 {[%emt 0:00:01]} 81. Bd3 {[%emt 0:00:01]} Bc6 {[%emt 0:00:03]} 82. Kb4 {[%emt 0:00:02]} Bd7 {[%emt 0:00:01]} 83. Be5 {[%emt 0:00:02]} Nc8 {[%emt 0:00:02]} 84. Be4+ {[%emt 0:00:02]} Ka6 {[%emt 0:00:00]} 85. Bd3+ {[%emt 0:00:01]} Kb7 {[%emt 0:00:01]} 86. a5 {[%emt 0:00:01]} Na7 {[%emt 0:00:01]} 87. Bc3 {[%emt 0:00:05]} Nc6+ {[%emt 0:00:01]} 88. Kc5 {[%emt 0:00:01]} Nxa5 {[%emt 0:00:02]} 89. Bxa5 {[%emt 0:00:01]} Bc6 {[%emt 0:00:01]} 90. Bc4 {[%emt 0:00:01]} Bf3 {[%emt 0:00:01]} 91. Bd3 {[%emt 0:00:03]} Bg2 {[%emt 0:00:01]} 92. Bf5 {[%emt 0:00:01]} Bf3 {[%emt 0:00:01]} 93. Kb4 {[%emt 0:00:02]} Bg2 {[%emt 0:00:01]} 94. Bd3 {[%emt 0:00:02]} Bf3 {[%emt 0:00:01]} 95. Bd8 {[%emt 0:00:03]} Bg2 {[%emt 0:00:01]} 1/2-1/2

[Event "EWIBCC 2019"]
[Site "Monte-Carlo"]
[Date "2019.11.29"]
[Round "12.15"]
[White "Daulyte-Cornette, Deimante"]
[Black "Worek, Joanna"]
[Result "1-0"]
[ECO "B23"]
[WhiteElo "2405"]
[BlackElo "2316"]
[Annotator "NA"]
[PlyCount "93"]
[EventDate "2019.11.29"]
[EventType "swiss"]
[EventCountry "MNC"]
[SourceTitle "playchess.com"]
[Source "ChessBase"]
[SourceQuality "1"]
[TimeControl "180+2"]

1. e4 {[%emt 0:00:00]} c5 {[%emt 0:00:00]} 2. Nc3 {[%emt 0:00:01]} Nc6 {[%emt 0:00:01]} 3. Bb5 {[%emt 0:00:02]} Nd4 {[%emt 0:00:02]} 4. Nf3 {[%emt 0:00:01]} Nxb5 {[%emt 0:00:02]} 5. Nxb5 {[%emt 0:00:02]} a6 {[%emt 0:00:01]} 6. Nc3 {[%emt 0:00:01]} d6 {[%emt 0:00:03]} 7. d4 {[%emt 0:00:02]} cxd4 {[%emt 0:00:02]} 8. Qxd4 {[%emt 0:00:02]} e5 {[%emt 0:00:07]} 9. Qd3 {[%emt 0:00:01]} Be6 {[%emt 0:00:05]} 10. Nd2 {[%emt 0:00:15]} Rc8 {[%emt 0:00:02]} 11. O-O {[%emt 0:00:17]} Nf6 {[%emt 0:00:10]} 12. a4 {[%emt 0:00:06]} Be7 {[%emt 0:00:05]} 13. Rd1 {[%emt 0:00:04]} O-O {[%emt 0:00:17]} 14. Nf1 {[%emt 0:00:03]} Bc4 {[%emt 0:00:14]} 15. Qf3 {[%emt 0:00:09]} h6 {[%emt 0:00:40]} 16. Ne3 {[%emt 0:00:31]} Be6 {[%emt 0:00:01]} 17. h3 {[%emt 0:00:04]} Re8 {[%emt 0:00:14]} 18. Qe2 {[%emt 0:00:23]} Rxc3 {[%emt 0:00:12]} 19. bxc3 {[%emt 0:00:02]} Nxe4 {[%emt 0:00:02]} 20. Qd3 {[%emt 0:00:16]} Nc5 {[%emt 0:00:16]} 21. Qd2 {[%emt 0:00:05]} Qc8 {[%emt 0:00:02]} 22. c4 {[%emt 0:00:22]} f5 {[%emt 0:00:20]} 23. Nd5 {[%emt 0:00:21]} Bf8 {[%emt 0:00:20]} 24. Qe2 {[%emt 0:00:10]} Ne4 {[%emt 0:00:03]} 25. Bb2 {[%emt 0:00:07]} Qc5 {[%emt 0:00:08]} 26. Ba3 {[%emt 0:00:09]} Qc6 {[%emt 0:00:01]} 27. Qd3 {[%emt 0:00:04]} Rc8 {[%emt 0:00:02]} 28. Ne3 {[%emt 0:00:06]} f4 {[%emt 0:00:09]} 29. Nd5 {[%emt 0:00:04]} Qxc4 {[%emt 0:00:04]} 30. Nb6 {[%emt 0:00:01]} Qxd3 {[%emt 0:00:01]} 31. cxd3 {[%emt 0:00:02]} Rc6 {[%emt 0:00:03]} 32. dxe4 {[%emt 0:00:11]} Rxb6 33. Rab1 {[%emt 0:00:00]} Rc6 {[%emt 0:00:07]} 34. Rxb7 {[%emt 0:00:00]} Rc4 {[%emt 0:00:05]} 35. Bxd6 {[%emt 0:00:00]} Bxd6 {[%emt 0:00:01]} 36. Rxd6 {[%emt 0:00:00]} Bc8 {[%emt 0:00:01]} 37. Rd8+ {[%emt 0:00:02]} Kh7 {[%emt 0:00:01]} 38. Rb8 {[%emt 0:00:01]} Be6 {[%emt 0:00:01]} 39. Re8 {[%emt 0:00:03]} Bd7 {[%emt 0:00:02]} 40. Rxe5 {[%emt 0:00:02]} Bxa4 {[%emt 0:00:00]} 41. Re7 {[%emt 0:00:03]} Bc2 {[%emt 0:00:04]} 42. Rbb7 {[%emt 0:00:04]} Bxe4 {[%emt 0:00:01]} 43. Rxg7+ {[%emt 0:00:02]} Kh8 {[%emt 0:00:01]} 44. Ra7 {[%emt 0:00:03]} Rc1+ {[%emt 0:00:04]} 45. Kh2 {[%emt 0:00:00]} Ra1 {[%emt 0:00:01]} 46. Rge7 {[%emt 0:00:02]} Bd5 {[%emt 0:00:01]} 47. Re8+ {[%emt 0:00:02]} 1-0

[Event "EWIBCC 2019"]
[Site "Monte-Carlo"]
[Date "2019.11.29"]
[Round "12.16"]
[White "Gaprindashvili, Nona"]
[Black "Guichard, Pauline"]
[Result "0-1"]
[ECO "E73"]
[WhiteElo "2275"]
[BlackElo "2407"]
[Annotator "ChessBase"]
[PlyCount "97"]
[EventDate "2019.11.29"]
[EventType "swiss"]
[EventCountry "MNC"]
[SourceTitle "playchess.com"]
[Source "ChessBase"]
[SourceQuality "1"]
[TimeControl "180+2"]

1. d4 {[%emt 0:00:00]} Nf6 {[%emt 0:00:00]} 2. c4 {[%emt 0:00:00]} g6 {[%emt 0:00:00]} 3. Nc3 {[%emt 0:00:01]} Bg7 {[%emt 0:00:02]} 4. e4 {[%emt 0:00:01]} d6 {[%emt 0:00:01]} 5. Be2 {[%emt 0:00:01]} O-O {[%emt 0:00:03]} 6. Bg5 {[%emt 0:00:01]} e5 {[%emt 0:00:13]} 7. dxe5 {[%emt 0:00:18]} dxe5 {[%emt 0:00:06]} 8. Qxd8 {[%emt 0:00:03]} Rxd8 {[%emt 0:00:02]} 9. Nd5 {[%emt 0:00:02]} Nbd7 {[%emt 0:00:18]} 10. Nxc7 {[%emt 0:00:05]} Rb8 {[%emt 0:00:02]} 11. Nd5 {[%emt 0:00:02]} h6 {[%emt 0:00:06]} 12. Bxf6 {[%emt 0:00:22]} Nxf6 {[%emt 0:00:02]} 13. f3 {[%emt 0:00:03]} Be6 {[%emt 0:00:55]} 14. O-O-O {[%emt 0:00:06]} Bxd5 {[%emt 0:00:26]} 15. cxd5 {[%emt 0:00:06]} Nh5 {[%emt 0:00:16]} 16. g3 {[%emt 0:00:03]} f5 {[%emt 0:00:01]} 17. Bd3 {[%emt 0:00:05]} Rbc8+ {[%emt 0:00:19]} 18. Kb1 {[%emt 0:00:01]} fxe4 {[%emt 0:00:01]} 19. Bxe4 {[%emt 0:00:11]} Nf6 {[%emt 0:00:04]} 20. Ne2 {[%emt 0:00:03]} g5 {[%emt 0:00:08]} 21. Nc3 {[%emt 0:00:10]} Bf8 {[%emt 0:00:02]} 22. Bf5 {[%emt 0:00:04]} Rc4 {[%emt 0:00:08]} 23. Rhe1 {[%emt 0:00:16]} Bd6 {[%emt 0:00:02]} 24. Be4 {[%emt 0:00:46]} a6 {[%emt 0:00:01]} 25. Re2 {[%emt 0:00:13]} b5 {[%emt 0:00:02]} 26. a3 {[%emt 0:00:01]} Rb8 {[%emt 0:00:04]} 27. Bd3 {[%emt 0:00:06]} Rd4 {[%emt 0:00:07]} 28. Bc2 {[%emt 0:00:04]} Rxd1+ 29. Bxd1 {[%emt 0:00:01]} b4 {[%emt 0:00:04]} 30. axb4 {[%emt 0:00:02]} Rxb4 {[%emt 0:00:02]} 31. Bc2 {[%emt 0:00:03]} a5 {[%emt 0:00:04]} 32. Be4 {[%emt 0:00:13]} Kf7 {[%emt 0:00:01]} 33. Kc2 {[%emt 0:00:01]} g4 {[%emt 0:00:09]} 34. fxg4 {[%emt 0:00:03]} Nxg4 {[%emt 0:00:01]} 35. Bf5 {[%emt 0:00:05]} Nf6 {[%emt 0:00:02]} 36. Be6+ {[%emt 0:00:01]} Kg6 {[%emt 0:00:02]} 37. h3 {[%emt 0:00:02]} h5 {[%emt 0:00:02]} 38. g4 {[%emt 0:00:02]} hxg4 {[%emt 0:00:01]} 39. hxg4 {[%emt 0:00:01]} Nxg4 {[%emt 0:00:03]} 40. Rg2 {[%emt 0:00:02]} Kg5 {[%emt 0:00:03]} 41. Nd1 {[%emt 0:00:09]} Kh4 {[%emt 0:00:05]} 42. Bxg4 {[%emt 0:00:06]} Rxg4 {[%emt 0:00:01]} 43. Rxg4+ {[%emt 0:00:09]} Kxg4 {[%emt 0:00:01]} 44. Kd3 {[%emt 0:00:00]} Kf5 {[%emt 0:00:11]} 45. Nc3 {[%emt 0:00:01]} Bb4 {[%emt 0:00:01]} 46. Ne4 {[%emt 0:00:01]} Kg6 {[%emt 0:00:05]} 47. Kc4 {[%emt 0:00:02]} Kf7 {[%emt 0:00:01]} 48. d6 {[%emt 0:00:02]} Ke6 {[%emt 0:00:00]} 49. Kb5 {[%emt 0:00:02]} 0-1

[Event "EWIBCC 2019"]
[Site "Monte-Carlo"]
[Date "2019.11.29"]
[Round "12.17"]
[White "Socko, Monika"]
[Black "Berzina, Ilze"]
[Result "1-0"]
[ECO "D78"]
[WhiteElo "2417"]
[BlackElo "2211"]
[Annotator "NA"]
[PlyCount "57"]
[EventDate "2019.11.29"]
[EventType "swiss"]
[EventCountry "MNC"]
[SourceTitle "playchess.com"]
[Source "ChessBase"]
[SourceQuality "1"]
[TimeControl "180+2"]

1. d4 {[%emt 0:00:00]} d5 {[%emt 0:00:00]} 2. c4 {[%emt 0:00:00]} c6 {[%emt 0:00:00]} 3. Nf3 {[%emt 0:00:01]} Nf6 {[%emt 0:00:00]} 4. Nbd2 {[%emt 0:00:02]} g6 {[%emt 0:00:09]} 5. g3 {[%emt 0:00:03]} Bg7 {[%emt 0:00:01]} 6. Bg2 {[%emt 0:00:01]} O-O {[%emt 0:00:02]} 7. O-O {[%emt 0:00:02]} Bf5 {[%emt 0:00:11]} 8. b3 {[%emt 0:00:17]} Na6 {[%emt 0:00:05]} 9. Bb2 {[%emt 0:00:04]} Ne4 {[%emt 0:00:12]} 10. Nh4 {[%emt 0:00:09]} Nxd2 {[%emt 0:00:06]} 11. Qxd2 {[%emt 0:00:01]} Bg4 {[%emt 0:00:14]} 12. h3 {[%emt 0:00:07]} Be6 {[%emt 0:00:03]} 13. Rac1 {[%emt 0:00:08]} Qd7 {[%emt 0:00:09]} 14. Kh2 {[%emt 0:00:02]} Rfd8 {[%emt 0:00:02]} 15. Rfd1 {[%emt 0:00:02]} Rac8 {[%emt 0:00:13]} 16. Nf3 {[%emt 0:00:03]} Bf5 {[%emt 0:00:06]} 17. Ne5 {[%emt 0:00:09]} Qd6 {[%emt 0:00:21]} 18. cxd5 {[%emt 0:00:10]} cxd5 {[%emt 0:00:04]} 19. Qa5 {[%emt 0:00:01]} Be4 {[%emt 0:00:24]} 20. f3 {[%emt 0:00:16]} Bf5 {[%emt 0:00:01]} 21. Ba3 {[%emt 0:00:06]} Qf6 {[%emt 0:00:09]} 22. Rxc8 {[%emt 0:00:35]} Rxc8 {[%emt 0:00:01]} 23. Qxd5 {[%emt 0:00:01]} b6 {[%emt 0:00:31]} 24. Qb7 {[%emt 0:00:13]} Nc7 {[%emt 0:00:07]} 25. Rc1 {[%emt 0:00:06]} Nb5 {[%emt 0:00:29]} 26. Rxc8+ {[%emt 0:00:07]} Bxc8 {[%emt 0:00:02]} 27. Qxc8+ {[%emt 0:00:01]} Bf8 {[%emt 0:00:01]} 28. Nd7 {[%emt 0:00:09]} Qg7 {[%emt 0:00:02]} 29. Bxe7 {[%emt 0:00:04]} 1-0

[Event "EWIBCC 2019"]
[Site "Monte-Carlo"]
[Date "2019.11.29"]
[Round "12.18"]
[White "Zvereva, Marija"]
[Black "Muetsch, Annmarie"]
[Result "1-0"]
[ECO "A08"]
[WhiteElo "2154"]
[BlackElo "2240"]
[Annotator "NA"]
[PlyCount "73"]
[EventDate "2019.11.29"]
[EventType "swiss"]
[EventCountry "MNC"]
[SourceTitle "playchess.com"]
[Source "ChessBase"]
[SourceQuality "1"]
[TimeControl "180+2"]

1. e4 {[%emt 0:00:14]} c5 {[%emt 0:00:00]} 2. Nf3 {[%emt 0:00:02]} Nc6 {[%emt 0:00:02]} 3. d3 {[%emt 0:00:04]} g6 {[%emt 0:00:11]} 4. Nbd2 {[%emt 0:00:03]} Bg7 {[%emt 0:00:02]} 5. g3 {[%emt 0:00:01]} Nf6 {[%emt 0:00:06]} 6. Bg2 {[%emt 0:00:01]} O-O {[%emt 0:00:04]} 7. O-O {[%emt 0:00:02]} d5 {[%emt 0:00:02]} 8. c3 {[%emt 0:00:06]} b6 {[%emt 0:00:11]} 9. Re1 {[%emt 0:00:02]} Bb7 {[%emt 0:00:05]} 10. e5 {[%emt 0:00:17]} Ne8 {[%emt 0:00:13]} 11. e6 {[%emt 0:00:15]} fxe6 {[%emt 0:00:27]} 12. Ng5 {[%emt 0:00:02]} Nc7 {[%emt 0:00:06]} 13. Nxe6 {[%emt 0:00:10]} Nxe6 {[%emt 0:00:02]} 14. Rxe6 {[%emt 0:00:02]} Rf6 {[%emt 0:00:27]} 15. Qe2 {[%emt 0:00:04]} Bc8 {[%emt 0:00:31]} 16. Rxc6 {[%emt 0:00:11]} Rxc6 {[%emt 0:00:03]} 17. Nf3 {[%emt 0:00:09]} e6 {[%emt 0:00:14]} 18. Ne5 {[%emt 0:00:02]} Rc7 {[%emt 0:00:05]} 19. h4 {[%emt 0:00:08]} Bb7 {[%emt 0:00:18]} 20. Bg5 {[%emt 0:00:01]} Qf8 {[%emt 0:00:02]} 21. h5 {[%emt 0:00:12]} Qf5 {[%emt 0:00:03]} 22. Bf4 {[%emt 0:00:04]} Re7 {[%emt 0:00:07]} 23. h6 {[%emt 0:00:03]} Bh8 {[%emt 0:00:04]} 24. Qe3 {[%emt 0:00:14]} Rf8 {[%emt 0:00:02]} 25. Re1 {[%emt 0:00:06]} Ba6 {[%emt 0:00:06]} 26. Nc6 {[%emt 0:00:05]} Ref7 {[%emt 0:00:02]} 27. Bd6 {[%emt 0:00:05]} Rc8 {[%emt 0:00:02]} 28. Ne7+ {[%emt 0:00:01]} Rxe7 {[%emt 0:00:01]} 29. Bxe7 {[%emt 0:00:02]} Rc6 {[%emt 0:00:04]} 30. d4 {[%emt 0:00:05]} cxd4 {[%emt 0:00:03]} 31. cxd4 {[%emt 0:00:01]} Bc8 {[%emt 0:00:02]} 32. Qa3 {[%emt 0:00:04]} a6 {[%emt 0:00:02]} 33. Qb3 {[%emt 0:00:08]} Bxd4 {[%emt 0:00:05]} 34. a4 {[%emt 0:00:08]} Qxf2+ {[%emt 0:00:02]} 35. Kh2 {[%emt 0:00:02]} Qxe1 {[%emt 0:00:01]} 36. Qf3 {[%emt 0:00:01]} Bg1+ {[%emt 0:00:08]} 37. Kh3 {[%emt 0:00:01]} 1-0

[Event "EWIBCC 2019"]
[Site "Monte-Carlo"]
[Date "2019.11.29"]
[Round "12.19"]
[White "Paasikangas-Tella, Johanna"]
[Black "Antova, Gabriela"]
[Result "0-1"]
[ECO "D43"]
[WhiteElo "2177"]
[BlackElo "2306"]
[Annotator "NA"]
[PlyCount "112"]
[EventDate "2019.11.29"]
[EventType "swiss"]
[EventCountry "MNC"]
[SourceTitle "playchess.com"]
[Source "ChessBase"]
[SourceQuality "1"]
[TimeControl "180+2"]

1. d4 {[%emt 0:00:00]} d5 {[%emt 0:00:00]} 2. c4 {[%emt 0:00:00]} e6 {[%emt 0:00:01]} 3. Nc3 {[%emt 0:00:01]} Nf6 {[%emt 0:00:02]} 4. Nf3 {[%emt 0:00:01]} c6 {[%emt 0:00:01]} 5. Bg5 {[%emt 0:00:08]} h6 {[%emt 0:00:08]} 6. Bh4 {[%emt 0:00:03]} dxc4 {[%emt 0:00:06]} 7. a4 {[%emt 0:00:01]} Bb4 {[%emt 0:00:07]} 8. e3 {[%emt 0:00:04]} b5 {[%emt 0:00:03]} 9. axb5 {[%emt 0:00:03]} cxb5 {[%emt 0:00:03]} 10. Qc2 {[%emt 0:00:02]} Bb7 {[%emt 0:00:17]} 11. Be2 {[%emt 0:00:02]} Nbd7 {[%emt 0:00:11]} 12. O-O {[%emt 0:00:04]} a6 {[%emt 0:00:05]} 13. Rfd1 {[%emt 0:00:06]} O-O {[%emt 0:00:09]} 14. e4 {[%emt 0:00:23]} Bxc3 {[%emt 0:00:31]} 15. bxc3 {[%emt 0:00:36]} Bxe4 {[%emt 0:00:03]} 16. Qb2 {[%emt 0:00:01]} Qc7 {[%emt 0:00:05]} 17. Bg3 {[%emt 0:00:08]} Qb7 {[%emt 0:00:02]} 18. Ne1 {[%emt 0:00:08]} Bc6 {[%emt 0:00:30]} 19. f3 {[%emt 0:00:06]} Nd5 {[%emt 0:00:04]} 20. Nc2 {[%emt 0:00:03]} N7f6 {[%emt 0:00:04]} 21. Rdb1 {[%emt 0:00:13]} Qd7 {[%emt 0:00:07]} 22. Bf1 {[%emt 0:00:09]} Nh5 {[%emt 0:00:06]} 23. Bf2 {[%emt 0:00:10]} Nhf4 {[%emt 0:00:03]} 24. Nb4 {[%emt 0:00:04]} Nxb4 {[%emt 0:00:07]} 25. Qxb4 {[%emt 0:00:10]} Qd5 {[%emt 0:00:03]} 26. Re1 {[%emt 0:00:05]} Qg5 {[%emt 0:00:19]} 27. Bg3 {[%emt 0:00:05]} h5 {[%emt 0:00:05]} 28. Re5 {[%emt 0:00:00]} Qf6 {[%emt 0:00:04]} 29. Qc5 {[%emt 0:00:04]} Bd5 {[%emt 0:00:05]} 30. Rae1 {[%emt 0:00:14]} Rfc8 {[%emt 0:00:03]} 31. Qb4 {[%emt 0:00:02]} h4 {[%emt 0:00:04]} 32. Bf2 {[%emt 0:00:11]} h3 {[%emt 0:00:02]} 33. g3 {[%emt 0:00:04]} Ng6 {[%emt 0:00:02]} 34. R5e3 {[%emt 0:00:05]} Bxf3 {[%emt 0:00:02]} 35. Bxh3 {[%emt 0:00:01]} Bd5 {[%emt 0:00:02]} 36. Qd6 {[%emt 0:00:03]} Rd8 {[%emt 0:00:03]} 37. Qb4 {[%emt 0:00:01]} Qg5 {[%emt 0:00:06]} 38. Bg2 {[%emt 0:00:09]} Bxg2 {[%emt 0:00:03]} 39. Kxg2 {[%emt 0:00:01]} Nf4+ {[%emt 0:00:00]} 40. Kh1 {[%emt 0:00:04]} Nd5 {[%emt 0:00:03]} 41. Re5 {[%emt 0:00:01]} Qxe5 {[%emt 0:00:02]} 42. dxe5 Nxb4 {[%emt 0:00:02]} 43. cxb4 {[%emt 0:00:04]} Rd2 {[%emt 0:00:01]} 44. Be3 {[%emt 0:00:00]} Rd3 {[%emt 0:00:02]} 45. Bc5 {[%emt 0:00:01]} Rad8 {[%emt 0:00:00]} 46. Bd6 {[%emt 0:00:01]} R8xd6 {[%emt 0:00:04]} 47. exd6 {[%emt 0:00:01]} Rxd6 {[%emt 0:00:01]} 48. Rc1 {[%emt 0:00:00]} Rd3 {[%emt 0:00:02]} 49. Ra1 {[%emt 0:00:35]} Rd6 50. Rc1 {[%emt 0:00:00]} Kf8 {[%emt 0:00:03]} 51. Kg2 {[%emt 0:00:00]} e5 {[%emt 0:00:01]} 52. Kf3 {[%emt 0:00:00]} Ke7 {[%emt 0:00:00]} 53. Ke4 Ke6 54. Rf1 {[%emt 0:00:00]} Rd4+ {[%emt 0:00:03]} 55. Ke3 {[%emt 0:00:00]} Rd3+ {[%emt 0:00:03]} 56. Ke4 {[%emt 0:00:00]} f5+ {[%emt 0:00:27] Kd4} 0-1